Workbook

Sheet Partenza sistema
B1: Applicazione di partenza per sistema di isolamento a cappotto con base di partenza in PVC, rompigoccia ed elemento di giunzione
A6: Spessore del pannello
A7: 120 mm - 180 mm
A9: Fornitura e posa in opera di partenza per sistemi di isolamento a cappotto, realizzata mediante elemento in PVC da fissare al supporto, elementi di giunzione e terminale con rompigoccia munito di gocciolatoio e rete in fibra di vetro alcali resistente - tipo Base di partenza in PVC ed Elemento di giunzione di Kerakoll. Il prezzo è per metro lineare di partenza effettivamente posta in opera. E' altresì compresa la fornitura e posa in opera di tutti i materiali sopra descritti e quanto altro occorre per dare il lavoro finito. Sono esclusi: la preparazione del supporto, il materiale per la tassellatura mediante appositi tasselli da valutarsi in ragione della tipologia di supporto; il materiale per la rasatura; le indagini pre e post intervento; tutti i sussidi necessari per l'esecuzione dei lavori ricadenti all'interno dei costi della sicurezza indiretti.
A15: DESCRIZIONE | D15: U.M. | E15: QUANTITA' | F15: PREZZO UNITARIO* | G15: PREZZO COMPLETO
A16: RISORSE UMANE (RU)
A17: Tassellatura della base di partenza, applicazione di giunzioni e rompigoccia | I17: OPERAIO QUALIFICATO (MO1003) | L17: =INDEX(lavorazioni_secondostrato,(VLOOKUP($B$1,lavorazioni_secondostrato,2,FALSE)+1),3) -> 
A18: =IF(A17=0,"",$I$17) -> OPERAIO QUALIFICATO (MO1003) | D18: =IFERROR(VLOOKUP(A18,PRZ,2,FALSE),"") -> H/mq | E18: 0.08 | F18: =IFERROR(VLOOKUP(A18,PRZ,3,FALSE),"") -> 29.25 | G18: =IFERROR(E18*F18,"") -> 2.34 | L18: =IF(L17=0,"",$I$17) ->  | O18: =IFERROR(VLOOKUP(L18,prezzi,2,FALSE),"") ->  | P18: =IF(L18=$I$17,VLOOKUP(L17,#REF!,2,FALSE),IF(L18=$I$18,VLOOKUP(L16,#REF!,2,FALSE),"")) ->  | Q18: =IFERROR(VLOOKUP(L18,prezzi,3,FALSE),"") ->  | R18: =IFERROR(P18*Q18,"") -> 
D19: =IFERROR(VLOOKUP(A19,prezzi,2,FALSE),"") ->  | E19: =IF(A19=$I$17,VLOOKUP(#REF!,QTA,2,FALSE),"") ->  | F19: sommano RU | G19: =SUM(G18:G18) -> 2.34 | P19: =IF(L19=$I$17,VLOOKUP(#REF!,#REF!,2,FALSE),IF(L19=$I$18,VLOOKUP(#REF!,#REF!,2,FALSE),"")) ->  | Q19: sommano RU | R19: =SUM(R18:R18) -> 0
A20: PRODOTTI DA COSTRUZIONE (PR) | D20: =IFERROR(VLOOKUP(A20,prezzi,2,FALSE),"") -> 
A21: Base di partenza PVC | B21: =A7 -> 120 mm - 180 mm | D21: m/m | E21: 1 | F21: =IFERROR(VLOOKUP(B21,PRZ,3,FALSE),"") -> 18.138 | G21: =IFERROR(F21*E21,"") -> 18.138
A22: Elemento di giunzione | B22: (un pezzo ogni 2,5 m di base di partenza) | D22: n/m | E22: 0.4 | F22: =IFERROR(VLOOKUP(A22,PRZ,3,FALSE),"") -> 0.198 | G22: =IFERROR(F22*E22,"") -> 0.0792
F23: sommano PR | G23: =SUM(G21:G22) -> 18.2172
A24: ATTREZZATURE (AT)
A25: NOLO DI STRUMENTAZIONE DA CANTIERE | D25: H/m | E25: 0.01 | F25: 8 | G25: =F25*E25 -> 0.08
A26: TRASPORTO MATERIALI DI CONSUMO | D26: kg/m | E26: =0.1 -> 0.1 | F26: =0.02 -> 0.02 | G26: =F26*E26 -> 0.002
F27: sommano AT | G27: =SUM(G25:G26) -> 0.082
F28: Costo Tecnico (CT) | G28: =SUM(G27,G23,G19) -> 20.6392
F29: Costo indiretto (SG) 17,00% | G29: =G28*0.17 -> 3.508664
F30: Costo figurativo (U) 10,00% | G30: =(G28+G29)*0.1 -> 2.4147864
A31: * Prezzi materiali Kerakoll = Listino 07-2025. Prezzi manodopera = Prezziario DEI (I Semestre 2025) - Media Nazionale.
B32: RU+PR+AT+SG+U | D32: PREZZO COMPLESSIVO AL METRO | G32: =G28+G29+G30 -> 26.5626504
A34: Voce di capitolato
A35: Fornitura e posa in opera di partenza per sistemi di isolamento a cappotto, realizzato mediante base di partenza in alluminio, elementi di giunzione, e profilo in PVC sovraverniciabile munito di gocciolatoio e rete in fibra di vetro termosaldata - tipo Base di partenza, Elemento di giunzione e Rompigoccia per base di partenza di Kerakoll. L'intervento si svolge nelle seguenti fasi: a) Tassellatura dell'elemento preforato al supporto mediante appositi tasselli da muro (materiale per la tassellatura da contabilizzare a parte) b) Incollaggio del primo corso di pannelli isolanti al supporto (materiali e lavorazione da contabilizzare a parte) c) Inserimento tra l'elemento preforato in PVC e la base del pannello isolante del Terminale con Rompigoccia e rete. La valutazione è espressa per metro lineare di partenza effettivamente posta in opera.

Sheet Unità misura e prezzi (hidden)
B2: Prodotto | C2: UM | D2: Prezzo
B3: OPERAIO QUALIFICATO (MO1003) | C3: H/mq | D3: 29.25
B4: Base di partenza in PVC
B5: 80 mm - 140 mm | C5: m/m | D5: 13.664
B6: 120 mm - 180 mm | C6: m/m | D6: 18.138
B7: 160 mm - 240 mm | C7: m/m | D7: 22.924
B8: Elemento di giunzione | C8: n/m | D8: 0.198
